fUSD/lending_fUSD_20240815
["ID","MTS","AMOUNT","RATE_DAILY","PERIOD"]
[334987422,1723711874468,-500.0,0.00023999,7]
[334987423,1723711874478,-500.0,0.00023999,2]
[334987424,1723711874489,-500.0,0.00023999,2]
[334987425,1723711874499,-500.0,0.00023999,2]
[334987426,1723711874508,-500.0,0.00023999,2]
[334987427,1723711874517,-500.0,0.00023999,7]
[334987428,1723711874527,-500.0,0.00023999,7]
[334987429,1723711874642,-500.0,0.00023999,7]
[334987430,1723711874652,-500.0,0.00023999,7]
[334987431,1723711874662,-500.0,0.00023999,2]
[334987432,1723711874671,-957.44,0.00023999,7]
[334987433,1723711874681,-957.44,0.00023999,7]
[334987434,1723711874690,-957.44,0.00023999,7]
[334987435,1723711874701,-957.44,0.00023999,7]
[334987436,1723711874711,-587.5880187,0.00023999,7]
[334987437,1723711874721,-500.0,0.00023999,7]
[334987438,1723711874730,-530.83384341,0.00023999,7]
[334987439,1723711874740,-500.0,0.00023999,7]
[334987440,1723711874750,-500.0,0.00023999,7]
[334987441,1723711874760,-407.50179228,0.00023999,7]
[334987442,1723711874770,-500.0,0.00023999,7]
[334987443,1723711874779,-500.0,0.00023999,7]
[334987444,1723711874789,-500.0,0.00023999,7]
[334987445,1723711874798,-485.43375292,0.00023999,7]
[334987446,1723711874807,-500.0,0.00023999,7]
[334987447,1723711874817,-500.0,0.00023999,7]
[334987448,1723711874826,-500.0,0.00023999,7]
[334987449,1723711874835,-500.0,0.00023999,7]
[334987450,1723711874844,-500.0,0.00023999,7]
[334987451,1723711874854,-500.0,0.00023999,7]
[334987452,1723711874863,-488.48,0.00023999,7]
[334987453,1723711874874,-500.0,0.00023999,7]
[334987454,1723711874885,-500.0,0.00023999,7]
[334987455,1723711874896,-500.0,0.00023999,7]
[334987456,1723711874906,-500.0,0.00023999,7]
[334987457,1723711874916,-500.0,0.00023999,7]
[334987458,1723711874927,-500.0,0.00023999,7]
[334987459,1723711874936,-500.0,0.00023999,7]
[334987460,1723711874946,-500.0,0.00023999,7]
[334987461,1723711874955,-900.0,0.00024,2]
[334987462,1723711874965,-256.9842263,0.00024,2]
[334987463,1723711874978,-15576.01943153,0.00024,2]
[334987464,1723711874987,-16441.06839064,0.00024,2]
[334987465,1723711874997,-10963.24557948,0.00024,2]
[334987466,1723711875007,-10408.23364206,0.00024,2]
[334987467,1723711875017,-191.81,0.00024,2]
[334987468,1723711875027,-500.0,0.00024003,7]
[334987469,1723711875036,-500.0,0.00024003,2]
[334987470,1723711875046,-500.0,0.00024003,7]
[334987471,1723711875055,-957.44,0.00024003,7]
[334987472,1723711875064,-430.96,0.00024003,7]
[334987473,1723711875073,-500.0,0.00024003,7]
[334987474,1723711875082,-619.04,0.00024012,7]
[334987475,1723711875091,-500.0,0.00024012,7]
[334987476,1723711875101,-627.02987621,0.00024012,7]
[334987477,1723711875111,-500.0,0.00024012,7]
[334987478,1723711875120,-500.0,0.00024012,7]
[334987479,1723711875129,-500.0,0.00024012,7]
[334987480,1723711875138,-500.0,0.00024012,7]
[334987481,1723711875148,-500.0,0.00024012,7]
[334987482,1723711875157,-500.0,0.00024012,7]
[334987483,1723711875166,-500.0,0.00024012,7]
[334987484,1723711875176,-500.0,0.00024012,7]
[334987485,1723711875186,-512.17,0.00024012,7]
[334987486,1723711875195,-500.0,0.00024012,7]
[334987487,1723711875207,-500.0,0.00024012,7]
[334987488,1723711875217,-500.0,0.00024012,7]
[334987489,1723711875226,-1904.96,0.00024012,7]
[334987490,1723711875236,-500.0,0.00024012,7]
[334987491,1723711875245,-500.0,0.00024012,7]
[334987492,1723711875254,-500.0,0.00024012,7]
[334987493,1723711875264,-205.28,0.00024012,7]
[334987494,1723711875273,-500.0,0.00024012,7]
[334987495,1723711875282,-401.36,0.00024012,7]
[334987496,1723711875292,-500.0,0.00024012,7]
[334987497,1723711875302,-500.0,0.00024012,7]
[334987498,1723711875314,-876.52,0.00024012,7]
[334987499,1723711875324,-500.0,0.00024012,7]
[334987500,1723711875334,-525.26,0.00024012,7]
[334987501,1723711875345,-1853.62,0.00024012,7]
[334987502,1723711875355,-565.24,0.00024012,7]
[334987503,1723711875364,-500.0,0.00024012,7]
[334987504,1723711875375,-500.0,0.00024012,7]
[334987505,1723711875384,-500.0,0.00024012,7]
[334987506,1723711875394,-1019.67,0.00024012,7]
[334987507,1723711875403,-920.87,0.00024012,7]
[334987508,1723711875413,-500.0,0.00024012,7]
[334987509,1723711875422,-186.04530776,0.00024021,2]
[334987510,1723711875433,-500.0,0.00024021,7]
[334987511,1723711875443,-500.0,0.00024021,7]
[334987512,1723711875454,-500.0,0.00024021,7]
[334987513,1723711875472,-500.0,0.00024021,7]
[334987514,1723711875481,-1249.29,0.00024021,7]
[334987515,1723711875492,-603.18,0.00024021,7]
[334987516,1723711875501,-507.74669422,0.00024021,7]
[334987517,1723711875512,-500.0,0.00024021,7]
[334987518,1723711875521,-1037.91,0.00024021,7]
[334987519,1723711875531,-500.0,0.00024021,7]
[334987520,1723711875540,-500.0,0.00024021,7]
[334987521,1723711875550,-500.0,0.00024021,7]
[334987522,1723711875559,-500.0,0.00024021,7]
[334987523,1723711875568,-500.0,0.00024021,7]
[334987524,1723711875577,-500.0,0.00024021,7]
[334987525,1723711875586,-1809.24,0.00024021,7]
[334987526,1723711875596,-500.0,0.00024021,7]
[334987527,1723711875605,-545.18849039,0.00024021,7]
[334987528,1723711875615,-706.73,0.00024021,7]
[334987529,1723711875625,-500.0,0.00024021,7]
[334987530,1723711875634,-29048.77403118,0.00024021,2]
[334987531,1723711875644,-157.16054442,0.00024021,2]
[334987532,1723711875654,-500.0,0.00024029,7]
[334987533,1723711875666,-304.35785438,0.00024029,7]
[334987534,1723711875677,-500.0,0.00024029,7]
[334987535,1723711875687,-500.0,0.00024029,7]
[334987536,1723711875697,-500.0,0.00024029,7]
[334987537,1723711875708,-500.0,0.00024029,7]
[334987538,1723711875718,-500.0,0.00024029,7]
[334987539,1723711875727,-500.0,0.00024029,7]
[334987540,1723711875738,-500.0,0.00024029,7]
[334987541,1723711875747,-500.0,0.00024029,7]
[334987542,1723711875756,-500.0,0.00024029,7]
[334987543,1723711875766,-500.0,0.00024029,7]
[334987544,1723711875776,-500.0,0.00024029,7]
[334987545,1723711875786,-500.0,0.00024029,7]
[334987546,1723711875796,-500.0,0.00024029,7]
[334987547,1723711875805,-500.0,0.00024029,7]
[334987548,1723711875815,-252.78628587,0.00024029,7]
[334987549,1723711875824,-500.0,0.00024029,7]
[334987550,1723711875834,-500.0,0.00024029,7]
[334987551,1723711875844,-254.43,0.00024029,7]
[334987552,1723711875854,-500.0,0.00024029,7]
[334987553,1723711875864,-500.0,0.00024029,7]
[334987554,1723711875874,-500.0,0.00024029,7]
[334987555,1723711875883,-500.0,0.00024029,7]
[334987556,1723711875893,-500.0,0.00024029,7]
[334987557,1723711875902,-500.0,0.00024029,7]
[334987558,1723711875913,-500.0,0.00024029,7]
[334987559,1723711875922,-500.0,0.00024029,7]
[334987560,1723711875933,-500.0,0.00024029,7]
[334987561,1723711875942,-500.0,0.00024029,7]
[334987562,1723711875955,-500.0,0.00024029,7]
[334987563,1723711875965,-500.0,0.00024029,7]
[334987564,1723711875977,-500.0,0.00024029,7]
[334987565,1723711875987,-500.0,0.0002403,7]
[334987566,1723711875996,-500.0,0.0002403,7]
[334987567,1723711876005,-500.0,0.0002403,7]
[334987568,1723711876015,-500.0,0.0002403,7]
[334987569,1723711876025,-500.0,0.0002403,7]
[334987570,1723711876035,-500.0,0.0002403,7]
[334987571,1723711876046,-773.43,0.0002403,7]
[334987572,1723711876055,-500.0,0.0002403,7]
[334987573,1723711876066,-500.0,0.0002403,7]
[334987574,1723711876075,-500.0,0.0002403,7]
[334987575,1723711876084,-500.0,0.0002403,7]
[334987576,1723711876094,-630.74213503,0.0002403,7]
[334987577,1723711876104,-522.91224142,0.0002403,7]
[334987578,1723711876115,-150.0,0.0002403,7]
[334987579,1723711876125,-500.0,0.0002403,7]
[334987580,1723711876135,-537.18208409,0.0002403,7]
[334987581,1723711876144,-500.0,0.0002403,7]
[334987582,1723711876153,-538.39,0.0002403,7]
[334987583,1723711876163,-500.0,0.0002403,7]
[334987584,1723711876174,-500.0,0.0002403,7]
[334987585,1723711876184,-500.0,0.0002403,7]
[334987586,1723711876195,-500.0,0.0002403,7]
[334987587,1723711876205,-500.0,0.0002403,7]
[334987588,1723711876214,-500.0,0.0002403,7]
[334987589,1723711876224,-500.0,0.0002403,7]
[334987590,1723711876233,-573.48,0.0002403,7]
[334987591,1723711876244,-500.0,0.0002403,7]
[334987592,1723711876255,-621.75,0.0002403,7]
[334987593,1723711876265,-500.0,0.0002403,7]
[334987594,1723711876275,-500.0,0.0002403,7]
[334987595,1723711876284,-500.0,0.0002403,7]
[334987596,1723711876294,-500.0,0.0002403,7]
[334987597,1723711876304,-500.0,0.0002403,7]
[334987598,1723711876313,-500.0,0.0002403,7]
[334987599,1723711876323,-500.0,0.0002403,7]
[334987600,1723711876332,-1177.5,0.0002403,7]
[334987601,1723711876341,-500.0,0.0002403,7]
[334987602,1723711876351,-500.0,0.0002403,7]
[334987603,1723711876360,-500.0,0.0002403,7]
[334987604,1723711876370,-500.0,0.0002403,7]
[334987605,1723711876481,-500.0,0.0002403,7]
[334987606,1723711876491,-500.0,0.0002403,7]
[334987607,1723711876501,-512.18,0.0002403,7]
[334987608,1723711876510,-500.0,0.0002403,7]
[334987609,1723711876520,-500.0,0.0002403,7]
[334987610,1723711876529,-500.0,0.0002403,7]
[334987611,1723711876538,-500.0,0.0002403,7]
[334987612,1723711876547,-500.0,0.0002403,7]
[334987613,1723711876556,-475.26201975,0.0002403,7]
[334987614,1723711876565,-500.0,0.0002403,7]
[334987615,1723711876574,-1130.53,0.0002403,7]
[334987616,1723711876583,-500.0,0.0002403,7]
[334987617,1723711876594,-500.0,0.0002403,7]
[334987618,1723711876604,-602.77,0.0002403,7]
[334987619,1723711876613,-500.0,0.0002403,7]
[334987620,1723711876623,-500.0,0.0002403,7]
[334987621,1723711876632,-500.0,0.0002403,7]
[334987622,1723711876641,-500.0,0.0002403,7]
[334987623,1723711876650,-500.0,0.0002403,7]
[334987624,1723711876661,-500.0,0.0002403,7]
[334987625,1723711876670,-500.0,0.0002403,7]
[334987626,1723711876679,-500.0,0.0002403,7]
[334987627,1723711876689,-500.0,0.0002403,7]
[334987628,1723711876699,-500.0,0.0002403,7]
[334987629,1723711876709,-500.0,0.0002403,7]
[334987630,1723711876719,-500.0,0.0002403,7]
[334987631,1723711876728,-500.0,0.0002403,7]
[334987632,1723711876738,-4429.79,0.0002403,7]
[334987633,1723711876748,-500.0,0.0002403,7]
[334987634,1723711876758,-1556.85,0.0002403,7]
[334987635,1723711876768,-500.0,0.0002403,7]
[334987636,1723711876778,-3275.77,0.0002403,7]
[334987637,1723711876787,-500.0,0.0002403,7]
[334987638,1723711876797,-500.0,0.0002403,7]
[334987639,1723711876807,-500.0,0.0002403,7]
[334987640,1723711876816,-500.0,0.0002403,7]
[334987641,1723711876825,-509.54,0.0002403,7]
[334987642,1723711876835,-276.80428066,0.0002403,7]
[334987643,1723711876845,-500.0,0.0002403,7]
[334987644,1723711876854,-500.0,0.0002403,7]
[334987645,1723711876863,-500.0,0.0002403,7]
[334987646,1723711876872,-500.0,0.0002403,7]
[334987647,1723711876882,-500.0,0.0002403,7]
[334987648,1723711876891,-500.0,0.0002403,7]
[334987649,1723711876901,-500.0,0.0002403,7]
[334987650,1723711876911,-500.0,0.0002403,7]
[334987651,1723711876921,-1345.06,0.0002403,7]
[334987652,1723711876930,-500.0,0.0002403,7]
[334987653,1723711876939,-500.0,0.0002403,7]
[334987654,1723711876949,-500.0,0.0002403,7]
[334987655,1723711876959,-616.62,0.0002403,7]
[334987656,1723711876971,-500.0,0.0002403,7]
[334987657,1723711876981,-500.0,0.0002403,7]
[334987658,1723711876993,-500.0,0.0002403,7]
[334987659,1723711877004,-504.37,0.0002403,7]
[334987660,1723711877015,-500.0,0.0002403,7]
[334987661,1723711877026,-500.0,0.0002403,7]
[334987662,1723711877041,-505.1905599,0.0002403,7]
[334987663,1723711877052,-500.0,0.0002403,7]
[334987664,1723711877062,-500.0,0.0002403,7]
[334987665,1723711877072,-500.0,0.0002403,7]
[334987666,1723711877082,-166.19471744,0.0002403,7]
[334987667,1723711877091,-500.0,0.0002403,7]
[334987668,1723711877101,-499.05156045,0.0002403,7]
[334987669,1723711877111,-523.0,0.0002403,7]
[334987670,1723711877121,-500.0,0.0002403,7]
[334987671,1723711877131,-551.52,0.0002403,7]
[334987672,1723711877140,-936.26,0.0002403,2]
[334987673,1723711877150,-500.0,0.0002403,7]
[334987674,1723711877159,-738.9,0.0002403,7]
[334987675,1723711877168,-2954.81,0.0002403,7]
[334987676,1723711877178,-539.82,0.0002403,7]
[334987677,1723711877187,-324.80346222,0.00024031,7]
[334987678,1723711877198,-881.8,0.00024031,7]
[334987679,1723711877208,-881.8,0.00024031,7]
[334987680,1723711877217,-881.8,0.00024031,7]
[334987681,1723711877226,-881.8,0.00024031,7]
[334987682,1723711877236,-882.03,0.00024031,7]
[334987683,1723711877245,-621.28,0.00024031,7]
[334987684,1723711877255,-621.28,0.00024031,7]
[334987685,1723711877264,-621.28,0.00024031,7]
[334987686,1723711877276,-621.28,0.00024031,7]
[334987687,1723711877286,-621.35417022,0.00024031,7]
[334987688,1723711877310,-617.12,0.00024031,7]
[334987689,1723711877327,-617.12,0.00024031,7]
[334987690,1723711877345,-617.12,0.00024031,7]
[334987691,1723711877367,-617.12,0.00024031,7]
[334987692,1723711877385,-617.15594044,0.00024031,7]
[334987693,1723711877404,-619.04,0.00024031,7]
[334987694,1723711877421,-500.0,0.00024031,7]
[334987695,1723711877437,-500.0,0.00024031,7]
[334987696,1723711877457,-500.0,0.00024031,7]
[334987697,1723711877478,-500.0,0.00024031,7]
[334987698,1723711877492,-500.0,0.00024031,7]
[334987699,1723711877507,-502.26046188,0.00024031,7]
[334987700,1723711877524,-221.34527331,0.00024031,2]
[334987701,1723711877540,-500.0,0.00024031,7]
[334987702,1723711877555,-715.45,0.00024031,7]
[334987703,1723711877570,-957.44,0.00024031,7]
[334987704,1723711877585,-500.0,0.00024031,7]
[334987705,1723711877601,-500.0,0.00024031,7]
[334987706,1723711877618,-189.50826887,0.00024031,7]
[334987707,1723711877634,-512.17,0.00024031,7]
[334987708,1723711877651,-500.0,0.00024031,7]
[334987709,1723711877667,-500.0,0.00024031,7]
[334987710,1723711877682,-500.0,0.00024031,7]
[334987711,1723711877699,-500.0,0.00024031,7]
[334987712,1723711877714,-1904.96,0.00024031,7]
[334987713,1723711877729,-216.94867227,0.00024031,7]
[334987714,1723711877744,-500.0,0.00024031,7]
[334987715,1723711877759,-500.0,0.00024031,7]
[334987716,1723711877775,-500.0,0.00024031,7]
[334987717,1723711877790,-612.48,0.00024031,7]
[334987718,1723711877806,-500.0,0.00024031,7]
[334987719,1723711877820,-10330.39,0.00024031,7]
[334987720,1723711877836,-500.0,0.00024031,7]
[334987721,1723711877851,-500.0,0.00024031,7]
[334987722,1723711877866,-876.52,0.00024031,7]
[334987723,1723711877880,-500.0,0.00024031,7]
[334987724,1723711877896,-525.26,0.00024031,7]
[334987725,1723711877911,-1853.62,0.00024031,7]
[334987726,1723711877925,-212.95511118,0.00024031,2]
[334987727,1723711877940,-565.24,0.00024031,7]
[334987728,1723711877955,-500.0,0.00024031,7]
[334987729,1723711877971,-500.0,0.00024031,7]
[334987730,1723711877987,-500.0,0.00024031,7]
[334987731,1723711878002,-1019.67,0.00024031,7]
[334987732,1723711878018,-920.87,0.00024031,7]
[334987733,1723711878034,-500.0,0.00024031,7]
[334987734,1723711878048,-500.0,0.00024031,7]
[334987735,1723711878063,-506.12815002,0.00024032,7]
[334987736,1723711878078,-500.36689048,0.00024032,7]
[334987737,1723711878092,-500.37773647,0.00024032,7]
[334987738,1723711878107,-500.0,0.00024032,7]
[334987739,1723711878121,-507.89585159,0.00024032,7]
[334987740,1723711878136,-402.44886409,0.00024032,7]
[334987741,1723711878151,-500.0,0.00024032,7]
[334987742,1723711878165,-500.0,0.00024032,7]
[334987743,1723711878181,-498.59486117,0.00024032,7]
[334987744,1723711878196,-300.0,0.00024032,7]
[334987745,1723711878212,-300.0,0.00024032,7]
[334987746,1723711878226,-490.59097795,0.00024032,7]
[334987747,1723711878241,-319.41555564,0.00024032,7]
[334987748,1723711878255,-499.4729165,0.00024032,7]
[334987749,1723711878270,-501.15430166,0.00024032,7]
[334987750,1723711878285,-507.37257586,0.00024032,7]
[334987751,1723711878298,-502.85989997,0.00024032,7]
[334987752,1723711878313,-502.85831358,0.00024032,7]
[334987753,1723711878327,-500.74275482,0.00024032,7]
[334987754,1723711878341,-239.1799876,0.00024032,7]
[334987755,1723711878355,-500.31237642,0.00024032,7]
[334987756,1723711878370,-500.98271976,0.00024032,7]
[334987757,1723711878384,-502.29996171,0.00024032,7]
[334987758,1723711878398,-500.0,0.00024032,7]
[334987759,1723711878412,-506.73449956,0.00024032,7]
[334987760,1723711878426,-614.86781122,0.00024032,7]
[334987761,1723711878440,-503.04620945,0.00024032,7]
[334987762,1723711878455,-500.0,0.00024032,7]
[334987763,1723711878472,-385.22329526,0.00024032,7]
[334987764,1723711878486,-503.69081335,0.00024032,7]
[334987765,1723711878501,-508.68407028,0.00024032,7]
[334987766,1723711878517,-503.18823281,0.00024032,7]
[334987767,1723711878688,-488.14443506,0.00024032,7]
[334987768,1723711878705,-505.35484134,0.00024032,7]
[334987769,1723711878715,-500.0,0.00024032,7]
[334987770,1723711878725,-509.21411918,0.00024032,7]
[334987771,1723711878735,-500.0,0.00024032,7]
[334987772,1723711878745,-510.51664973,0.00024032,7]
[334987773,1723711878754,-500.0,0.00024032,7]
[334987774,1723711878764,-498.2408691,0.00024032,7]
[334987775,1723711878774,-503.57923907,0.00024032,7]
[334987776,1723711878784,-507.2852945,0.00024032,7]
[334987777,1723711878794,-503.46410869,0.00024032,7]
[334987778,1723711878804,-503.48082887,0.00024032,7]
[334987779,1723711878814,-500.0,0.00024032,7]
[334987780,1723711878824,-506.94012798,0.00024032,7]
[334987781,1723711878833,-503.53293689,0.00024032,7]
[334987782,1723711878842,-183.75948386,0.00024032,7]
[334987783,1723711878852,-500.0,0.00024032,7]
[334987784,1723711878862,-508.89843303,0.00024032,7]
[334987785,1723711878872,-498.45752207,0.00024032,7]
[334987786,1723711878882,-500.0,0.00024032,7]
[334987787,1723711878892,-505.30372419,0.00024032,7]
[334987788,1723711878901,-501.46902192,0.00024032,7]
[334987789,1723711878911,-500.0,0.00024032,7]
[334987790,1723711878921,-507.11844443,0.00024032,7]
[334987791,1723711878931,-385.25827072,0.00024032,7]
[334987792,1723711878941,-500.0,0.00024032,7]
[334987793,1723711878952,-504.91674016,0.00024032,7]
[334987794,1723711878972,-503.54941085,0.00024032,7]
[334987795,1723711878982,-500.0,0.00024032,7]
[334987796,1723711878992,-506.72751361,0.00024032,7]
[334987797,1723711879001,-207.6337712,0.00024032,7]
[334987798,1723711879011,-500.0,0.00024032,7]
[334987799,1723711879022,-502.82142509,0.00024032,7]
[334987800,1723711879031,-500.0,0.00024032,7]
[334987801,1723711879040,-498.56763367,0.00024032,7]
[334987802,1723711879051,-500.0,0.00024032,7]
[334987803,1723711879060,-235.09776719,0.00024032,7]
[334987804,1723711879070,-500.0,0.00024032,7]
[334987805,1723711879080,-510.65260639,0.00024032,7]
[334987806,1723711879090,-500.0,0.00024032,7]
[334987807,1723711879099,-508.84472189,0.00024032,7]
[334987808,1723711879109,-500.0,0.00024032,7]
[334987809,1723711879119,-507.22040206,0.00024032,7]
[334987810,1723711879129,-500.0,0.00024032,7]
[334987811,1723711879141,-500.0,0.00024032,7]
[334987812,1723711879150,-500.0,0.00024032,7]
[334987813,1723711879160,-500.0,0.00024032,7]
[334987814,1723711879171,-506.86134482,0.00024032,7]
[334987815,1723711879180,-498.4654927,0.00024032,7]
[334987816,1723711879190,-509.60451923,0.00024032,7]
[334987817,1723711879200,-507.00047397,0.00024032,7]
[334987818,1723711879210,-503.97510811,0.00024032,7]
[334987819,1723711879219,-504.88499056,0.00024032,7]
[334987820,1723711879229,-502.58370003,0.00024032,7]
[334987821,1723711879238,-507.58414134,0.00024032,7]
[334987822,1723711879248,-502.80157787,0.00024032,7]
[334987823,1723711879258,-502.99479733,0.00024032,7]
[334987824,1723711879267,-504.10292869,0.00024032,7]
[334987825,1723711879276,-503.47381518,0.00024032,7]
[334987826,1723711879286,-504.33972318,0.00024032,7]
[334987827,1723711879295,-503.25533713,0.00024032,7]
[334987828,1723711879304,-507.83302021,0.00024032,7]
[334987829,1723711879314,-505.30851152,0.00024032,7]
[334987830,1723711879324,-510.13245058,0.00024032,7]
[334987831,1723711879333,-506.49287668,0.00024032,7]
[334987832,1723711879343,-506.79078778,0.00024032,7]
[334987833,1723711879352,-510.69369582,0.00024032,7]
[334987834,1723711879362,-510.53680637,0.00024032,7]
[334987835,1723711879372,-500.0,0.00024032,2]
[334987836,1723711879382,-618.34281913,0.00024032,2]
[334987837,1723711879392,-510.22854344,0.00024032,7]
[334987838,1723711879402,-281.00501517,0.00024032,7]
[334987839,1723711879411,-501.73986632,0.00024032,7]
[334987840,1723711879421,-500.0,0.00024032,2]
[334987841,1723711879431,-500.0,0.00024032,2]
[334987842,1723711879440,-504.69888086,0.00024032,7]
[334987843,1723711879451,-502.62419924,0.00024032,7]
[334987844,1723711879460,-607.72366854,0.00024032,7]
[334987845,1723711879471,-510.03134457,0.00024032,7]
[334987846,1723711879481,-501.54922459,0.00024032,7]
[334987847,1723711879491,-501.77663734,0.00024032,7]
[334987848,1723711879501,-500.0,0.00024032,7]
[334987849,1723711879511,-500.0,0.00024032,7]
[334987850,1723711879522,-646.45698635,0.00024032,2]
[334987851,1723711879531,-500.85551574,0.00024032,7]
[334987852,1723711879540,-500.73196276,0.00024032,7]
[334987853,1723711879551,-500.0,0.00024032,7]
[334987854,1723711879561,-204.78180832,0.00024032,7]
[334987855,1723711879571,-621.43343542,0.00024032,7]
[334987856,1723711879582,-179.23835466,0.00024032,2]
[334987857,1723711879591,-500.0,0.00024032,2]
[334987858,1723711879600,-500.0,0.00024032,2]
[334987859,1723711879610,-501.96005741,0.00024032,7]
[334987860,1723711879620,-563.26743435,0.00024032,7]
[334987861,1723711879631,-500.0,0.00024032,7]
[334987862,1723711879641,-506.28562188,0.00024032,7]
[334987863,1723711879652,-500.0,0.00024032,7]
[334987864,1723711879663,-510.47078688,0.00024032,7]
[334987865,1723711879673,-537.19362737,0.00024032,7]
[334987866,1723711879684,-508.59908679,0.00024032,7]
[334987867,1723711879694,-509.99863402,0.00024032,7]
[334987868,1723711879707,-220.47795823,0.00024032,7]
[334987869,1723711879718,-357.49793309,0.00024032,7]
[334987870,1723711879728,-957.44,0.00024032,7]
[334987871,1723711879739,-3693.81384697,0.00024032,2]
[334987872,1723711879750,-500.0,0.00024032,7]
[334987873,1723711879760,-901.76998133,0.00024058,2]
[334987874,1723711879770,-647.16182356,0.00024084,2]
[334987875,1723711879780,-200.0,0.000241,2]
[334987876,1723711879790,-4889.0,0.000241,2]
[334987877,1723711879800,-438.5,0.000241,7]
[334987878,1723711879810,-957.44,0.0002411,7]
[334987879,1723711879820,-197.48,0.0002411,7]
[334987880,1723711879830,-500.0,0.00024113,7]
[334987881,1723711879840,-500.0,0.00024113,7]
[334987882,1723711879850,-500.0,0.00024113,7]
[334987883,1723711879860,-1249.29,0.00024113,7]
[334987884,1723711879871,-603.18,0.00024113,7]
[334987885,1723711879881,-500.0,0.00024113,7]
[334987886,1723711879891,-1037.91,0.00024113,7]
[334987887,1723711879900,-500.0,0.00024113,7]
[334987888,1723711879910,-500.0,0.00024113,7]
[334987889,1723711879919,-500.0,0.00024113,7]
[334987890,1723711879929,-500.0,0.00024113,7]
[334987891,1723711879939,-500.0,0.00024113,7]
[334987892,1723711879948,-500.0,0.00024113,7]
[334987893,1723711879960,-1809.24,0.00024113,7]
[334987894,1723711879973,-500.0,0.00024113,7]
[334987895,1723711879983,-706.73,0.00024113,7]
[334987896,1723711879992,-500.0,0.00024113,7]
[334987897,1723711880002,-500.0,0.00024114,7]
[334987898,1723711880012,-300.0,0.00024114,7]
[334987899,1723711880021,-500.0,0.00024114,7]
[334987900,1723711880031,-500.0,0.00024114,7]
[334987901,1723711880041,-500.0,0.00024114,2]
[334987902,1723711880052,-500.34909382,0.00024114,2]
[334987903,1723711880061,-186.04530776,0.00024116,2]
[334987904,1723711880070,-157.16054442,0.00024116,2]
[334987905,1723711880080,-500.0,0.0002412,7]
[334987906,1723711880089,-500.0,0.0002412,7]
[334987907,1723711880099,-500.0,0.0002412,7]
[334987908,1723711880109,-195.93658205,0.0002412,7]
[334987909,1723711880118,-500.0,0.0002412,7]
[334987910,1723711880127,-500.0,0.0002412,7]
[334987911,1723711880136,-500.0,0.0002412,7]
[334987912,1723711880146,-249.78352862,0.0002412,7]
[334987913,1723711880156,-500.0,0.0002412,7]
[334987914,1723711880165,-359.63312123,0.0002412,7]
[334987915,1723711880175,-500.0,0.0002412,7]
[334987916,1723711880185,-500.0,0.0002412,7]
[334987917,1723711880195,-500.0,0.0002412,7]
[334987918,1723711880207,-500.0,0.0002412,7]
[334987919,1723711880217,-500.0,0.0002412,7]
[334987920,1723711880226,-500.0,0.0002412,7]
[334987921,1723711880236,-294.14368479,0.0002412,7]